lending/lending_fUSD_20250508
["ID","MTS","AMOUNT","RATE_DAILY","PERIOD"]
[360287744,1746710901264,194.65874869,0.000135,2]
[360287745,1746710918799,3574.83959443,0.000149,2]
[360287746,1746710918976,6595.62456947,0.00023,60]
[360287748,1746710927665,10862.09574838,0.00013368,2]
[360287749,1746710930028,4998.48333011,0.0003,30]
[360287751,1746711020024,-164.94,0.00019613,2]
[360287752,1746711020641,-3.41709968,0.00019613,2]
[360287753,1746711020664,-161.52290032,0.00019625,2]
[360287762,1746711032076,-905.59107555,0.00019625,2]
[360287765,1746711032085,-151.0,0.00019625,2]
[360287767,1746711032095,-413.32,0.00019686,2]
[360287768,1746711032104,-1000.0,0.000197,2]
[360287769,1746711032113,-826.6,0.000197,2]
[360287770,1746711032123,-1200.0,0.00019712,2]
[360287771,1746711032132,-300.0,0.00019712,2]
[360287772,1746711032142,-245.20104073,0.00019712,2]
[360287773,1746711032158,-54.79895927,0.00019712,2]
[360287774,1746711032167,-155.0,0.00019713,2]
[360287775,1746711032178,-151.0,0.00019713,2]
[360287776,1746711032188,-207.4,0.00019713,2]
[360287777,1746711032197,-668.65185757,0.00019713,2]
[360287778,1746711032207,-151.0,0.00019713,2]
[360287779,1746711032217,-203.01696139,0.00019715,2]
[360287780,1746711032366,-2868.37809468,0.00019715,2]
[360287781,1746711032376,-20850.9688283,0.00019725,2]
[360288114,1746711035875,163.4923076,0.00017085,2]
[360288120,1746711035917,279.5076924,0.00017085,2]
[360288309,1746711038137,-1784.10286343,0.00019725,2]
[360288310,1746711038197,-275.71199979,0.00019725,2]
[360288311,1746711038214,-825.27236295,0.00019725,2]
[360288312,1746711038258,-1301.48,0.00019725,2]
[360288592,1746711042875,-29501.06976715,0.00019725,2]
[360288593,1746711042885,-174.71548499,0.00019725,2]
[360288594,1746711042895,-500.0,0.00019726,2]
[360288595,1746711042904,-500.0,0.00019726,2]
[360288596,1746711042914,-500.0,0.00019726,2]
[360288598,1746711042923,-500.0,0.00019726,2]
[360288599,1746711042936,-500.0,0.00019726,2]
[360288600,1746711042946,-500.0,0.00019726,2]
[360288601,1746711042955,-500.0,0.00019726,2]
[360288602,1746711042965,-500.0,0.00019726,2]
[360288603,1746711042975,-500.0,0.00019726,2]
[360288604,1746711042984,-500.0,0.00019726,2]
[360288605,1746711042994,-689.68141326,0.00019726,2]
[360288606,1746711043004,-500.0,0.00019773,2]
[360288608,1746711043014,-500.0,0.00019773,2]
[360288610,1746711043024,-517.45871083,0.00019773,2]
[360288613,1746711043041,-28069.1175,0.00019786,2]
[360288615,1746711043052,-270.31017981,0.00019799,2]
[360288617,1746711043062,-158.32,0.00019817,2]
[360288619,1746711043071,-270.31017981,0.00019825,2]
[360288621,1746711043081,-8791.12137084,0.00019845,2]
[360288623,1746711043091,-1067.11397587,0.00019873,2]
[360288625,1746711043100,-500.0,0.00019873,2]
[360288627,1746711043110,-530.01864699,0.00019873,2]
[360288629,1746711043119,-500.0,0.00019873,2]
[360288631,1746711043128,-500.0,0.00019873,2]
[360288633,1746711043138,-223.81897589,0.00019873,2]
[360288634,1746711043147,-589.2459269,0.00019886,2]
[360288635,1746711043157,-169.9194312,0.00019886,2]
[360288636,1746711043167,-169.1458,0.00019886,2]
[360288637,1746711043178,-1000.0,0.00019886,2]
[360288638,1746711043188,-15731.0599,0.00019886,2]
[360288639,1746711043198,-1000.0,0.00019886,2]
[360288640,1746711043207,-866.3788,0.00019886,2]
[360288641,1746711043217,-8247.22788588,0.00019896,2]
[360288642,1746711043227,-425.92513563,0.00019899,2]
[360288643,1746711043237,-187.1287639,0.000199,2]
[360288644,1746711043247,-500.0,0.000199,2]
[360288645,1746711043258,-18627.7301,0.000199,2]
[360288646,1746711043268,-225.0,0.000199,2]
[360288647,1746711043278,-209.32352449,0.000199,2]
[360288648,1746711043288,-3935.3145,0.00019945,2]
[360288649,1746711043298,-153.0,0.00019963,2]
[360288650,1746711043307,-6790.0,0.00019963,2]
[360288651,1746711043317,-214.5,0.00019966,2]
[360288652,1746711043327,-500.0,0.00019971,2]
[360288653,1746711043336,-12500.0,0.00019973,2]
[360288654,1746711043346,-19865.0,0.00019973,2]
[360288655,1746711043355,-500.0,0.00019973,2]
[360288656,1746711043365,-512.38063991,0.00019973,2]
[360288657,1746711043374,-500.0,0.00019973,2]
[360288658,1746711043383,-500.0,0.00019973,2]
[360288659,1746711043393,-500.0,0.00019973,2]
[360288660,1746711043403,-1084.0,0.00019973,2]
[360288661,1746711043412,-167.392,0.00019974,2]
[360288662,1746711043422,-214.5,0.00019976,2]
[360288663,1746711043431,-214.5,0.00019976,2]
[360288664,1746711043440,-214.5,0.00019976,2]
[360288665,1746711043450,-214.5,0.00019976,2]
[360288666,1746711043459,-214.5,0.00019976,2]
[360288667,1746711043471,-214.5,0.00019976,2]
[360288668,1746711043481,-214.5,0.00019976,2]
[360288669,1746711043491,-214.5,0.0001998,2]
[360288670,1746711043501,-214.5,0.0001998,2]
[360288671,1746711043510,-1807.237,0.00019981,2]
[360288672,1746711043519,-12500.0,0.00019981,2]
[360288673,1746711043529,-151.0,0.00019986,2]
[360288674,1746711043539,-151.0,0.00019986,2]
[360288675,1746711043549,-151.0,0.00019986,2]
[360288676,1746711043558,-151.0,0.00019986,2]
[360288677,1746711043567,-171.5894,0.00019986,2]
[360288678,1746711043578,-157.486162,0.00019986,2]
[360288679,1746711043588,-151.0,0.00019986,2]
[360288681,1746711043599,-151.0,0.00019986,2]
[360288682,1746711043609,-151.0,0.00019986,2]
[360288683,1746711043619,-151.0,0.00019986,2]
[360288684,1746711043628,-151.0,0.00019986,2]
[360288685,1746711043637,-545.47838,0.00019986,2]
[360288686,1746711043647,-10128.9414207,0.00019986,2]
[360288687,1746711043656,-1049.4737184,0.00019986,2]
[360288688,1746711043666,-49133.3074425,0.00019986,2]
[360288689,1746711043675,-6285.1913052,0.00019986,2]
[360288690,1746711043684,-65154.78431278,0.00019986,2]
[360288691,1746711043702,-8241.63618712,0.00019986,2]
[360288692,1746711043712,-12830.727,0.00019986,2]
[360288693,1746711043722,-278.516117,0.0001999,2]
[360288694,1746711043731,-151.0,0.0001999,2]
[360288695,1746711043741,-151.0,0.0001999,2]
[360288696,1746711043752,-171.5894,0.0001999,2]
[360288697,1746711043761,-171.5894,0.0001999,2]
[360288698,1746711043771,-151.0,0.0001999,2]
[360288699,1746711043780,-151.0,0.0001999,2]
[360288700,1746711043790,-151.0,0.0001999,2]
[360288701,1746711043799,-209.925529,0.0001999,2]
[360288702,1746711043808,-151.0,0.0001999,2]
[360288703,1746711043818,-545.47838,0.0001999,2]
[360288704,1746711043827,-156.36152824,0.0001999,2]
[360288705,1746711043837,-12500.0,0.0001999,2]
[360288706,1746711043847,-12500.0,0.0001999,2]
[360288707,1746711043857,-11152.37216031,0.00019996,2]
[360288708,1746711043873,-13930.04897638,0.00019996,2]
[360288709,1746711043883,-3145.79413332,0.00019999,2]
[360288710,1746711044063,-600.0,0.00019999,2]
[360288711,1746711044077,-1162.24999,0.00019999,2]
[360288714,1746711046250,-738.30845914,0.00019999,2]
[360288715,1746711046264,-1096.76310143,0.00019999,2]
[360288716,1746711046276,-5756.88431611,0.00019999,2]
[360288717,1746711046286,-82.93639659,0.00019999,2]
[360288718,1746711046298,-113.83360341,0.00019999,2]
[360288719,1746711046307,-2603.32952119,0.00019999,2]
[360288720,1746711046322,-5309.75827554,0.00019999,2]
[360288721,1746711046334,-3504.68180753,0.00019999,2]
[360288722,1746711046345,-1082.23039574,0.00019999,2]
[360288723,1746711046355,-500.0,0.00019999,2]
[360288724,1746711046364,-500.0,0.00019999,2]
[360288725,1746711046374,-450.81402709,0.00019999,2]
[360288726,1746711046383,-500.0,0.00019999,2]
[360288727,1746711046392,-500.0,0.00019999,2]
[360288728,1746711046401,-500.0,0.00019999,2]
[360288729,1746711046410,-500.0,0.00019999,2]
[360288730,1746711046419,-500.0,0.00019999,2]
[360288731,1746711046429,-500.0,0.00019999,2]
[360288732,1746711046439,-500.0,0.00019999,2]
[360288733,1746711046448,-314.44523291,0.00019999,2]
[360288734,1746711046489,-185.55476709,0.00019999,2]
[360288735,1746711046499,-500.0,0.00019999,2]
[360288736,1746711046511,-500.0,0.00019999,2]
[360288737,1746711046520,-500.0,0.00019999,2]
[360288738,1746711046530,-500.0,0.00019999,2]
[360288739,1746711046539,-500.0,0.00019999,2]
[360288740,1746711046548,-500.0,0.00019999,2]
[360288741,1746711046558,-102.36760194,0.00019999,2]
[360288742,1746711046569,-397.63239806,0.00019999,2]
[360288743,1746711046578,-500.0,0.00019999,2]
[360288744,1746711046587,-500.0,0.00019999,2]
[360288745,1746711046597,-500.0,0.00019999,2]
[360288746,1746711046606,-500.0,0.00019999,2]
[360288748,1746711046617,-500.0,0.00019999,2]
[360288749,1746711046626,-500.0,0.00019999,2]
[360288750,1746711046636,-500.0,0.00019999,2]
[360288751,1746711046645,-500.0,0.00019999,2]
[360288752,1746711046654,-500.0,0.00019999,2]
[360288753,1746711046664,-500.0,0.00019999,2]
[360288754,1746711046674,-500.0,0.00019999,2]
[360288755,1746711046683,-500.0,0.00019999,2]
[360288756,1746711046693,-415.88989134,0.00019999,2]
[360288757,1746711046703,-500.0,0.00019999,2]
[360288758,1746711046712,-500.0,0.00019999,2]
[360288759,1746711046722,-500.0,0.00019999,2]
[360288760,1746711046731,-500.0,0.00019999,2]
[360288761,1746711046741,-500.0,0.00019999,2]
[360288762,1746711046750,-500.0,0.00019999,2]
[360288763,1746711046760,-500.0,0.00019999,2]
[360288764,1746711046769,-158.61058572,0.00019999,2]
[360288765,1746711046781,-341.38941428,0.00019999,2]
[360288766,1746711046791,-500.0,0.00019999,2]
[360288767,1746711046800,-163.31463998,0.00019999,2]
[360288768,1746711046809,-239.85989797,0.00019999,2]
[360288769,1746711096220,1264.0,0.00017085,2]
[360288770,1746711156185,1128.0,0.00017085,2]
[360288771,1746711216318,2529.0,0.00017085,2]
[360288772,1746711252029,625.83964709,0.00019499,2]
[360288773,1746711260501,180.96194239,0.0003,30]
[360288774,1746711276148,2649.4045581,0.00017085,2]
[360288775,1746711292862,534.65,0.0003,30]
[360288776,1746711293191,767.29,0.00030137,120]
[360288777,1746711293602,166.66,0.0001947,2]
[360288778,1746711324802,157.37,0.00019054,2]
[360288779,1746711570264,500.0,0.000195,2]
[360288781,1746711702592,1000.0,0.0001897,2]
[360288782,1746711733587,243.60829633,0.0002,10]
[360288783,1746711772509,685.07,0.00017034,2]
[360288784,1746711772753,685.07,0.00019298,2]
[360288785,1746711914223,156.14,0.0001897,2]
[360288786,1746711950932,453.85,0.00030136,120]
[360288787,1746712029860,1159.32018133,0.00030137,120]
[360288789,1746712071381,600.0,0.0003,30]
[360288790,1746712135875,400.0,0.0003,30]
[360288791,1746712172479,901.79,0.00030137,120]
[360288792,1746712192689,20000.0,0.00030137,120]
[360288793,1746712206691,-151.0,0.00019699,2]
[360288794,1746712206716,-472.35,0.00019699,2]
[360288795,1746712206743,-200.0,0.000197,2]
[360288796,1746712206767,-1061.0,0.000197,2]
[360288797,1746712206791,-200.0,0.00019732,2]
[360288798,1746712206814,-236.17,0.00019736,2]
[360288799,1746712206838,-207.4,0.00019774,2]
[360288800,1746712206861,-300.0,0.00019785,2]
[360288801,1746712206885,-1200.0,0.00019785,2]
[360288802,1746712206908,-20585.4827,0.00019786,2]
[360288803,1746712206929,-2500.0,0.00019786,2]
[360288804,1746712206951,-589.2459269,0.0001979,2]
[360288805,1746712206977,-7912.00923372,0.0001979,2]
[360288806,1746712206999,-1000.0,0.00019873,2]
[360288807,1746712207021,-500.0,0.00019873,2]
[360288808,1746712207043,-405.56513527,0.00019873,2]
[360288809,1746712207065,-668.65185757,0.00019874,2]
[360288810,1746712207087,-151.0,0.00019874,2]
[360288811,1746712207109,-213.79,0.00019876,2]
[360288812,1746712207131,-213.79,0.00019876,2]
[360288813,1746712207155,-213.79,0.00019876,2]
[360288814,1746712207178,-500.0,0.00019881,2]
[360288815,1746712207200,-3827.42138151,0.00019885,2]
[360288816,1746712207224,-16081.61304558,0.00019886,2]
[360288817,1746712207248,-48609.72071945,0.00019886,2]
[360288818,1746712217441,-166.28,0.00019876,2]
[360288819,1746712217466,-166.28,0.00019876,2]
[360288820,1746712217491,-166.28,0.00019876,2]
[360288821,1746712217515,-1501.16,0.00019876,2]
[360288828,1746712232317,-625.83964709,0.0001978,2]
[360288829,1746712232327,-500.0,0.00019873,2]
[360288830,1746712232337,-3037.08596891,0.00019886,2]
[360288831,1746712232349,-154912.95381164,0.00019886,2]
[360288832,1746712232360,-383.33262204,0.00019898,2]
[360288833,1746712232371,-177.7723257,0.000199,2]
[360288834,1746712232382,-179.42016384,0.000199,2]
[360288835,1746712232392,-6131.46257919,0.000199,2]
[360288836,1746712232402,-19865.0,0.00019973,2]
[360288837,1746712232411,-500.0,0.00019973,2]
[360288838,1746712232422,-1084.0,0.00019973,2]
[360288839,1746712232431,-500.0,0.00019973,2]
[360288840,1746712232441,-500.0,0.00019973,2]
[360288841,1746712232451,-300.0,0.00019973,2]
[360288842,1746712232460,-500.0,0.00019973,2]
[360288843,1746712232469,-500.0,0.00019973,2]
[360288844,1746712232480,-166.28,0.00019976,2]
[360288845,1746712232490,-166.28,0.00019976,2]
[360288846,1746712232500,-166.28,0.00019976,2]
[360288847,1746712232510,-166.28,0.00019976,2]
[360288848,1746712232520,-1807.237,0.0001998,2]
[360288849,1746712232531,-167.392,0.00019981,2]
[360288850,1746712232540,-3724.93109759,0.00019986,2]
[360288851,1746712232568,-2207.76476995,0.00019986,2]
[360288852,1746712232579,-500.0,0.00019986,2]
[360288853,1746712232606,-19769.9883088,0.00019986,2]
[360288854,1746712232617,-993.73274,0.00019986,2]
[360288855,1746712232651,-2561.1,0.00019986,2]
[360288868,1746712238425,-1910.23488341,0.00019986,2]
[360288869,1746712238467,-555.24231,0.00019986,2]
[360288870,1746712238479,-2526.5108,0.00019986,2]
[360288871,1746712238514,-5145.29743787,0.00019986,2]
[360288897,1746712240511,-607.46602351,0.00019986,2]
[360288898,1746712240557,-2439.74720309,0.00019986,2]
[360288899,1746712240570,-4930.9037663,0.00019986,2]
[360288900,1746712240711,-493.03620572,0.00019986,2]
[360288901,1746712240723,-5713.51995376,0.00019986,2]
[360288902,1746712240734,-11500.1756386,0.00019986,2]
[360288903,1746712240746,-7960.3599802,0.00019986,2]
[360288904,1746712240755,-32974.73371895,0.00019986,2]
[360288905,1746712240768,-19144.50561435,0.00019986,2]
[360288906,1746712240778,-6342.6587668,0.00019986,2]
[360288907,1746712240788,-7687.4241667,0.00019986,2]
[360288908,1746712240797,-669.77265614,0.00019986,2]
[360288909,1746712240807,-1880.2094263,0.00019986,2]
[360288910,1746712240818,-166.28,0.00019988,2]
[360288911,1746712240827,-166.28,0.00019989,2]
[360288912,1746712240836,-156.36152825,0.0001999,2]
[360288913,1746712240846,-500.0,0.00019998,2]
[360288914,1746712240855,-500.0,0.00019998,2]
[360288915,1746712240865,-500.0,0.00019998,2]
[360288916,1746712240874,-500.0,0.00019998,2]
[360288917,1746712240885,-500.0,0.00019998,2]
[360288918,1746712240895,-500.0,0.00019998,2]
[360288919,1746712240904,-500.0,0.00019998,2]
[360288920,1746712240914,-500.0,0.00019998,2]
[360288921,1746712240924,-500.0,0.00019998,2]
[360288922,1746712240934,-500.0,0.00019998,2]
[360288923,1746712240944,-500.0,0.00019998,2]
[360288924,1746712240954,-500.0,0.00019998,2]
[360288925,1746712240964,-500.0,0.00019998,2]
[360288926,1746712240974,-500.0,0.00019998,2]
[360288927,1746712240983,-500.0,0.00019998,2]
[360288928,1746712240993,-500.0,0.00019998,2]
[360288929,1746712241003,-500.0,0.00019998,2]
[360288931,1746712241013,-500.0,0.00019998,2]
[360288932,1746712241023,-500.0,0.00019998,2]
[360288933,1746712241033,-500.0,0.00019998,2]
[360288934,1746712241044,-500.0,0.00019998,2]
[360288935,1746712241057,-500.0,0.00019998,2]
[360288936,1746712241067,-500.0,0.00019998,2]
[360288937,1746712241076,-500.0,0.00019998,2]
[360288940,1746712241303,-500.0,0.00019998,2]
[360288941,1746712241328,-500.0,0.00019998,2]
[360288942,1746712241341,-500.0,0.00019998,2]
[360288943,1746712241353,-103.01295381,0.00019998,2]
[360288944,1746712241803,-396.98704619,0.00019998,2]
[360288945,1746712241813,-947.73920333,0.00019999,2]
[360288946,1746712241823,-1374.92276963,0.00019999,2]
[360288951,1746712243503,-227.89706232,0.00019998,2]
[360288952,1746712243514,-5935.51713163,0.00019999,2]
[360288953,1746712243553,-3447.51354814,0.00019999,2]
[360288954,1746712243566,-390966.78048723,0.00019999,2]
[360288955,1746712243576,-500.0,0.00019999,2]
[360288956,1746712243586,-3833.83556413,0.00019999,2]
[360288957,1746712243596,-188.57,0.00019999,2]
[360288958,1746712243606,-12500.0,0.00019999,2]
[360288959,1746712243616,-12500.0,0.00019999,2]
[360288960,1746712243626,-759.0,0.0002,2]
[360288961,1746712243636,-928.0,0.0002,2]
[360288962,1746712243646,-154.254,0.0002,2]
[360288963,1746712243661,-1337.541,0.0002,2]
[360288964,1746712243671,-663.628,0.0002,2]
[360288965,1746712243681,-798.0,0.0002,2]
[360288966,1746712243690,-582.0,0.0002,2]
[360288967,1746712243699,-916.0,0.0002,2]
[360288968,1746712243709,-1454.0,0.0002,2]
[360288969,1746712243718,-551.0,0.0002,2]
[360288970,1746712243728,-1245.0,0.0002,2]
[360288971,1746712243738,-242.0,0.0002,2]
[360288972,1746712243749,-6790.0,0.0002,2]
[360288973,1746712243758,-4020.0,0.0002,2]
[360288974,1746712243767,-879.0,0.0002,2]
[360288975,1746712243776,-255.512,0.0002,2]
[360288976,1746712243786,-153.0,0.0002,2]
[360288977,1746712243796,-150.0,0.0002,2]
[360288978,1746712243805,-2000.0,0.0002,4]
[360288979,1746712243814,-448150.08375042,0.0002,2]
[360288980,1746712243823,-101873.11214554,0.0002,2]
[360288981,1746712243835,-2729.15543529,0.0002,2]
[360288982,1746712243846,-295.99920458,0.0002,2]
[360288983,1746712243861,-356.29700548,0.0002,2]
[360288984,1746712243873,-1769.62,0.0002,2]
[360288988,1746712246620,-512.13161771,0.00019998,2]
[360288989,1746712246630,-512.13161771,0.00019998,2]
[360288990,1746712246639,-512.13161771,0.00019998,2]
[360288991,1746712246653,-512.13161771,0.00019998,2]
[360288992,1746712246662,-512.13161771,0.00019998,2]
[360288993,1746712246673,-512.13161771,0.00019998,2]
[360288994,1746712246683,-139.87302678,0.00019998,2]
[360288995,1746712246697,-372.25859093,0.00019998,2]
[360288996,1746712246708,-218.84140857,0.0002,2]
[360288997,1746712246771,-512.13161771,0.00019998,2]
[360288998,1746712246782,-512.13161771,0.00019998,2]
[360288999,1746712246792,-573.15859143,0.0002,2]
[360289000,1746712246802,-5862.57823615,0.0002,2]
[360289013,1746712295081,555.14,0.00019394,2]
[360289014,1746712341378,978.0,0.0003,30]
[360289030,1746712410244,3288.99,0.0003,30]
[360289031,1746712438706,1678.89,0.0003,30]
[360289032,1746712485596,250.0,0.00017,2]
[360289033,1746712486662,300.0,0.00019,2]
[360289034,1746712534860,676.84,0.00018951,2]
[360289035,1746712643525,296.32,0.00019053,2]
[360289036,1746712688445,1077.491075,7.945e-05,2]
[360289037,1746712748019,666.497236,7.945e-05,2]
[360289038,1746712779182,302.0,0.00030137,120]
[360289039,1746712827116,199.73972,0.0003,30]
[360289040,1746712828187,500.0,0.0003,30]
[360289041,1746712833182,645.8937496,0.00019265,2]
[360289042,1746712861355,2734.76,0.00018947,2]
[360289043,1746712871329,1000.0,0.00018947,2]
[360289044,1746712900543,728.96,0.00017039,2]
[360289045,1746712900745,728.96,0.00019303,2]
[360289047,1746712996431,2272.25,0.00018956,2]
[360289048,1746713034904,1863.55,0.00018966,2]
[360289049,1746713041828,500.0,0.0003,30]
[360289050,1746713045796,2855.0,0.00018966,2]
[360289051,1746713073376,550.29,0.00018976,2]
[360289052,1746713106801,200.39,0.00018965,2]
[360289053,1746713123694,471.31563395,0.00029589,30]
[360289054,1746713147456,153.24993506,0.00018,2]
[360289055,1746713175193,150.0,0.0003,30]
[360289056,1746713177773,500.0,0.00019178,2]
[360289057,1746713178117,500.0,0.00019178,2]
[360289058,1746713179273,500.0,0.00019178,2]
[360289059,1746713179308,500.0,0.00019178,2]
[360289060,1746713179352,295.71039234,0.00019178,2]
[360289061,1746713179378,204.28960766,0.00019178,2]
[360289062,1746713222845,500.0,0.00019178,2]
[360289063,1746713223199,500.0,0.00019178,2]
[360289064,1746713223545,500.0,0.00019178,2]
[360289065,1746713223870,500.0,0.00019178,2]
[360289066,1746713224195,500.0,0.00019178,2]
[360289067,1746713248499,-233.15049164,0.00019502,2]
[360289068,1746713255306,-204.96680842,0.00019502,2]
[360289069,1746713271389,-198.49104009,0.00019502,2]
[360289070,1746713285601,-167.80937792,0.00019502,2]
[360289071,1746713299978,-207.4,0.00019502,2]
[360289072,1746713330783,2633.694097,0.00019423,2]
[360289074,1746713358601,272.20199617,0.000195,2]
[360289075,1746713365244,597.73,0.0001891,2]
[360289076,1746713394592,200.0,0.0001891,2]
[360289077,1746713404942,18640.67,0.00019,2]
[360289088,1746713431527,-165.93,0.00019521,2]
[360289089,1746713431537,-115.6879197,0.00019524,2]
[360289090,1746713431587,-84.3120803,0.00019524,2]
[360289091,1746713431597,-300.0,0.00019527,2]
[360289092,1746713431606,-65.61993423,0.00019527,2]
[360289093,1746713431654,-1134.38006577,0.00019527,2]
[360289094,1746713431665,-300.0,0.00019527,2]
[360289095,1746713431674,-22695.85700508,0.00019528,2]
[360289096,1746713431683,-200.0,0.00019556,2]
[360289097,1746713431693,-150.0,0.000196,2]
[360289098,1746713431702,-645.8937496,0.00019602,2]
[360289099,1746713431712,-157.48,0.00019686,2]
[360289100,1746713431722,-863.7714,0.000197,2]
[360289101,1746713431731,-157.44,0.000197,2]
[360289102,1746713431740,-250.0,0.00019769,2]
[360289103,1746713431751,-2500.0,0.000198,2]
[360289104,1746713431760,-2500.0,0.000198,2]
[360289105,1746713431770,-8426.08822746,0.000198,2]
[360289106,1746713431780,-582.42522966,0.000198,2]
[360289107,1746713431790,-169.9194312,0.000198,2]
[360289108,1746713431799,-207.4,0.00019812,2]
[360289109,1746713431809,-165.05,0.00019823,2]
[360289110,1746713431819,-2171.03639642,0.00019824,2]
[360289111,1746713431831,-6896.97,0.00019824,2]
[360289112,1746713431840,-335.67,0.00019824,2]
[360289113,1746713431850,-999.99,0.00019824,2]
[360289114,1746713431860,-150.99,0.00019824,2]
[360289115,1746713431869,-9353.24,0.00019824,2]
[360289116,1746713431878,-9999.99,0.00019824,2]
[360289117,1746713431888,-500.0,0.00019873,2]
[360289118,1746713431897,-9999.99,0.00019873,2]
[360289119,1746713431907,-1539.85,0.00019873,2]
[360289120,1746713431916,-9999.99,0.00019873,2]
[360289121,1746713431925,-4860.72,0.00019873,2]
[360289122,1746713431934,-500.0,0.00019873,2]
[360289123,1746713431944,-151.0,0.00019888,2]
[360289124,1746713431954,-668.65185757,0.00019888,2]
[360289125,1746713431964,-5559.39,0.0001989,2]
[360289126,1746713431973,-645.89374961,0.00019892,2]
[360289127,1746713431983,-2171.03639642,0.00019895,2]
[360289128,1746713431992,-10000.0,0.00019899,2]
[360289129,1746713432001,-500.0,0.000199,2]
[360289130,1746713432011,-133072.83327387,0.000199,2]
[360289131,1746713432022,-24858.59242,0.000199,2]
[360289132,1746713432033,-1978.19999998,0.000199,2]
[360289133,1746713432044,-2040.00004,0.000199,2]
[360289134,1746713432059,-24836.0,0.000199,2]
[360289136,1746713432071,-470.18349059,0.000199,2]
[360289139,1746713432089,-250.0,0.000199,2]
[360289141,1746713432102,-461.295,0.000199,2]
[360289157,1746713437797,-255.1,0.0001989,2]
[360289158,1746713437806,-255.1,0.0001989,2]
[360289159,1746713437815,-255.1,0.0001989,2]
[360289160,1746713437823,-18592.65627556,0.000199,2]
[360289161,1746713437831,-409.7633,0.000199,2]
[360289162,1746713437840,-361.14608587,0.000199,2]
[360289163,1746713437849,-5000.0,0.000199,2]
[360289164,1746713437858,-168.8837094,0.000199,2]
[360289165,1746713437868,-1910.0,0.000199,2]
[360289166,1746713437877,-157.44,0.000199,2]
[360289167,1746713437887,-153.78871188,0.000199,2]
[360289168,1746713437896,-798.0,0.00019927,2]
[360289169,1746713437907,-238.04271728,0.00019927,2]
[360289170,1746713437921,-387.95728272,0.00019927,2]
[360289171,1746713437931,-551.0,0.00019927,2]
[360289172,1746713437942,-582.0,0.00019927,2]
[360289173,1746713437953,-1454.0,0.00019927,2]
[360289174,1746713437962,-916.0,0.0001993,2]
[360289175,1746713437973,-1245.0,0.0001993,2]
[360289176,1746713437983,-858.86050378,0.0001993,2]
[360289177,1746713437994,-284.13949622,0.0001993,2]
[360289178,1746713438004,-5935.0,0.0001993,2]
[360289179,1746713438014,-153.0,0.0001995,2]
[360289180,1746713438023,-6790.0,0.0001995,2]
[360289181,1746713438034,-4020.0,0.0001995,2]
[360289182,1746713438046,-167.39250447,0.00019983,2]
[360289183,1746713438055,-1445.79,0.00019986,2]
[360289184,1746713438065,-51369.22132952,0.00019986,2]
[360289185,1746713438082,-255.1,0.0001989,2]
[360289186,1746713438091,-56.084893,0.00019986,2]
[360289187,1746713438107,-2737.11734648,0.00019986,2]
[360289188,1746713438116,-7068.1188693,0.00019986,2]
[360289189,1746713438124,-42459.0369999,0.00019986,2]
[360289190,1746713438134,-3887.8635961,0.00019986,2]
[360289191,1746713438143,-9000.3893334,0.00019986,2]
[360289192,1746713438152,-5559.39,0.0001999,2]